fUST/lending_fUST_20240921
["ID","MTS","AMOUNT","RATE_DAILY","PERIOD"]
[338723544,1726897868789,-151.0,0.000162,2]
[338723545,1726897868798,-151.0,0.000162,2]
[338723546,1726897868807,-151.0,0.000162,2]
[338723547,1726897868816,-3000.0,0.000162,2]
[338723548,1726897868826,-192.085171,0.000162,2]
[338723549,1726897868835,-192.085171,0.000162,2]
[338723550,1726897868845,-151.0,0.000162,2]
[338723551,1726897868854,-1243.735646,0.000162,2]
[338723552,1726897868863,-1243.735646,0.000162,2]
[338723553,1726897868873,-155.25124,0.000162,2]
[338723554,1726897868882,-155.25124,0.000162,2]
[338723555,1726897868892,-151.0,0.0001621,2]
[338723556,1726897868902,-3000.0,0.0001621,2]
[338723557,1726897868911,-3000.0,0.0001622,2]
[338723558,1726897868920,-154.221509,0.0001622,2]
[338723559,1726897868930,-967.665613,0.0001622,2]
[338723560,1726897868939,-967.665613,0.0001622,2]
[338723561,1726897868949,-151.0,0.0001622,2]
[338723562,1726897868958,-620.05967728,0.0001623,2]
[338723563,1726897868967,-3000.0,0.0001623,2]
[338723564,1726897868977,-586.98,0.00016236,2]
[338723565,1726897868987,-1294.55,0.00016236,2]
[338723566,1726897868996,-772.75,0.00016236,2]
[338723567,1726897869005,-500.0,0.00016236,2]
[338723568,1726897869015,-23939.33,0.00016236,2]
[338723569,1726897869024,-3406.28,0.00016236,2]
[338723570,1726897869033,-500.0,0.00016237,2]
[338723571,1726897869044,-758.08,0.00016237,2]
[338723572,1726897869054,-500.0,0.00016237,2]
[338723573,1726897869064,-500.0,0.00016237,2]
[338723574,1726897869076,-500.0,0.00016237,2]
[338723575,1726897869087,-569.62,0.00016237,2]
[338723576,1726897869096,-563.57,0.00016237,2]
[338723577,1726897869106,-500.0,0.00016237,2]
[338723578,1726897869118,-500.0,0.00016237,2]
[338723579,1726897869128,-500.0,0.00016237,2]
[338723580,1726897869139,-639.4,0.00016237,2]
[338723581,1726897869149,-551.26,0.00016237,2]
[338723582,1726897869159,-500.0,0.00016237,2]
[338723583,1726897869169,-500.0,0.00016237,2]
[338723584,1726897869179,-500.0,0.00016237,2]
[338723585,1726897869191,-500.0,0.00016237,2]
[338723586,1726897869203,-500.0,0.00016237,2]
[338723587,1726897869214,-500.0,0.00016237,2]
[338723588,1726897869225,-500.0,0.00016237,2]
[338723589,1726897869237,-500.0,0.00016237,2]
[338723590,1726897869247,-1276.8,0.00016237,2]
[338723591,1726897869258,-577.85401187,0.00016237,2]
[338723592,1726897869267,-1057.54,0.00016238,2]
[338723593,1726897869276,-500.0,0.00016238,2]
[338723594,1726897869286,-277.44907629,0.00016238,2]
[338723595,1726897870222,-283.15650508,0.00014044,2]
[338723600,1726897919664,24900.0,0.00013049,2]
[338723603,1726897977537,2721.93359998,0.00013945,2]
[338723605,1726898306950,51397.4223631,0.00014035,2]
[338723606,1726898340015,253.565106,0.00011781,2]
[338723607,1726898394057,234.0512533,0.00013699,2]
[338723608,1726898454046,24900.0,0.00013046,2]
[338723610,1726898600861,48827.551245,0.00014034,2]
[338723611,1726898600903,48827.551245,0.00014035,2]
[338723612,1726898602833,55858.9071356,0.00014034,2]
[338723613,1726898602901,55858.9071356,0.00014035,2]
[338723615,1726898700950,300.0,0.0001404,2]
[338723616,1726898702563,300.0,0.0001404,2]
[338723618,1726898745285,158.47209938,0.00013945,2]
[338723619,1726898760538,300.0,0.0001404,2]
[338723620,1726898763252,300.0,0.0001404,2]
[338723621,1726898771201,2381.6919,0.00013942,2]
[338723622,1726898790627,159.090909,0.00013145,2]
[338723623,1726898790858,159.090909,0.00013214,2]
[338723624,1726898791078,159.090909,0.00013282,2]
[338723625,1726898791380,159.090909,0.00013351,2]
[338723626,1726898791501,159.090909,0.00013419,2]
[338723627,1726898791700,159.090909,0.00013488,2]
[338723628,1726898791925,159.090909,0.00013556,2]
[338723629,1726898792343,159.090909,0.00013625,2]
[338723630,1726898792734,159.090909,0.00013693,2]
[338723631,1726898792812,159.090909,0.00013762,2]
[338723632,1726898793026,159.090909,0.0001383,2]
[338723633,1726898820839,300.0,0.0001404,2]
[338723634,1726898823591,300.0,0.0001404,2]
[338723635,1726898837494,192.489863,0.00013048,2]
[338723636,1726898837769,192.489863,0.0001308,2]
[338723637,1726898837981,192.489863,0.00013113,2]
[338723638,1726898874961,111.48661278,0.00011781,2]
[338723639,1726898874988,129.40023722,0.00011781,2]
[338723640,1726898880668,300.0,0.0001404,2]
[338723641,1726898882955,300.0,0.0001404,2]
[338723642,1726898911922,43944.7961205,0.00014032,2]
[338723643,1726898912069,43944.7961205,0.00014034,2]
[338723644,1726898912148,43944.7961205,0.00014035,2]
[338723645,1726898915370,558.89,0.0001404,2]
[338723646,1726898924983,1346.92409535,0.0001404,2]
[338723647,1726898928482,118106.418391,0.00014032,2]
[338723648,1726898928511,59053.2091954,0.00014035,2]
[338723649,1726898929580,265.4551109,0.0001404,2]
[338723650,1726898932998,525.90665159,0.0001404,2]
[338723651,1726898933379,601.31,0.00010959,2]
[338723653,1726898936700,500.0,0.0001404,2]
[338723654,1726898940624,300.0,0.0001404,2]
[338723655,1726898943305,300.0,0.0001404,2]
[338723656,1726898943897,501.09,0.00010959,2]
[338723657,1726898945030,500.0,0.0001404,2]
[338723658,1726898947000,1234.07,0.0001404,2]
[338723659,1726898948980,568.4647211,0.0001404,2]
[338723660,1726898954398,417.57,0.00010959,2]
[338723661,1726898955432,236.39,0.0001404,2]
[338723662,1726898963617,500.0,0.0001404,2]
[338723663,1726898964946,347.98,0.00010959,2]
[338723664,1726898967779,500.0,0.0001404,2]
[338723665,1726898971644,500.0,0.0001404,2]
[338723666,1726898972751,500.0,0.0001404,2]
[338723667,1726898975468,289.98,0.00010959,2]
[338723668,1726898976101,500.0,0.0001404,2]
[338723669,1726898979175,500.0,0.0001404,2]
[338723670,1726898982175,737.13,0.0001404,2]
[338723671,1726898985993,241.65,0.00010959,2]
[338723672,1726898995501,500.0,0.0001404,2]
[338723673,1726898996509,201.38,0.00010959,2]
[338723674,1726898999543,234.78,0.0001404,2]
[338723675,1726899000509,300.0,0.0001404,2]
[338723676,1726899003160,300.0,0.0001404,2]
[338723677,1726899003195,51377.1128326,0.00013699,2]
[338723678,1726899003455,500.0,0.0001404,2]
[338723680,1726899007037,167.81,0.00010959,2]
[338723681,1726899013551,500.0,0.0001404,2]
[338723682,1726899017970,839.09,0.00010959,2]
[338723683,1726899020084,21944.39,0.0001404,2]
[338723684,1726899025293,500.0,0.0001404,2]
[338723685,1726899031301,3122.43,0.0001404,2]
[338723701,1726899038493,-216.84349492,0.00014041,2]
[338723702,1726899038506,-500.0,0.00014041,2]
[338723703,1726899038519,-517.76873335,0.00014041,2]
[338723704,1726899038532,-500.0,0.00014041,2]
[338723705,1726899038543,-200.19077939,0.00014041,2]
[338723706,1726899038555,-522.48715454,0.00014041,2]
[338723707,1726899038568,-500.0,0.00014041,2]
[338723708,1726899038579,-500.0,0.00014041,2]
[338723709,1726899038591,-500.0,0.00014041,2]
[338723710,1726899038605,-500.0,0.00014041,2]
[338723711,1726899038617,-500.0,0.00014041,2]
[338723712,1726899038630,-500.0,0.00014041,2]
[338723713,1726899038641,-500.0,0.00014041,2]
[338723714,1726899038653,-500.0,0.00014041,2]
[338723715,1726899038664,-500.0,0.00014041,2]
[338723716,1726899038674,-595.67,0.00014041,2]
[338723717,1726899038684,-500.0,0.00014041,2]
[338723718,1726899038697,-609.35,0.00014041,2]
[338723719,1726899038708,-500.0,0.00014041,2]
[338723720,1726899038721,-500.0,0.00014041,2]
[338723721,1726899038733,-500.0,0.00014041,2]
[338723722,1726899038744,-500.0,0.00014041,2]
[338723723,1726899038756,-500.0,0.00014041,2]
[338723724,1726899038767,-505.54668321,0.00014041,2]
[338723725,1726899038779,-500.0,0.00014041,2]
[338723726,1726899038792,-500.0,0.00014041,2]
[338723727,1726899038804,-500.0,0.00014041,2]
[338723728,1726899038817,-500.0,0.00014041,2]
[338723729,1726899038829,-500.0,0.00014041,2]
[338723730,1726899038840,-500.0,0.00014041,2]
[338723731,1726899038852,-500.0,0.00014041,2]
[338723732,1726899038862,-500.0,0.00014041,2]
[338723733,1726899038872,-500.0,0.00014041,2]
[338723734,1726899038883,-500.0,0.00014041,2]
[338723735,1726899038895,-500.0,0.00014041,2]
[338723736,1726899038907,-500.0,0.00014041,2]
[338723737,1726899038919,-500.0,0.00014041,2]
[338723738,1726899038932,-500.0,0.00014041,2]
[338723739,1726899038943,-500.0,0.00014041,2]
[338723740,1726899038953,-500.0,0.00014041,2]
[338723741,1726899038966,-500.0,0.00014041,2]
[338723742,1726899038977,-500.0,0.00014041,2]
[338723743,1726899038989,-500.0,0.00014041,2]
[338723744,1726899039001,-1170.4,0.00014041,2]
[338723745,1726899039012,-182.26489885,0.00014042,2]
[338723746,1726899039023,-474.7681597,0.00014042,2]
[338723747,1726899039035,-502.21641324,0.00014042,2]
[338723748,1726899039047,-500.0,0.00014042,2]
[338723749,1726899039059,-500.0,0.00014042,2]
[338723750,1726899039070,-500.0,0.00014042,2]
[338723751,1726899039081,-500.0,0.00014042,2]
[338723752,1726899039097,-500.0,0.00014042,2]
[338723753,1726899039109,-500.0,0.00014042,2]
[338723754,1726899039119,-500.0,0.00014042,2]
[338723755,1726899039131,-500.0,0.00014042,2]
[338723756,1726899039144,-622.47,0.00014042,2]
[338723757,1726899039156,-500.0,0.00014042,2]
[338723758,1726899039168,-500.0,0.00014042,2]
[338723759,1726899039180,-500.0,0.00014042,2]
[338723760,1726899039191,-390.47537682,0.00014042,2]
[338723761,1726899039203,-500.0,0.00014042,2]
[338723762,1726899039215,-500.0,0.00014042,2]
[338723763,1726899039227,-500.0,0.00014042,2]
[338723764,1726899039240,-500.0,0.00014042,2]
[338723765,1726899039253,-500.0,0.00014042,2]
[338723766,1726899039264,-500.0,0.00014042,2]
[338723767,1726899039275,-505.07644461,0.00014042,2]
[338723768,1726899039285,-500.0,0.00014042,2]
[338723769,1726899039296,-497.48238448,0.00014042,2]
[338723770,1726899039307,-500.0,0.00014042,2]
[338723771,1726899039319,-500.0,0.00014042,2]
[338723772,1726899039330,-250.03596596,0.00014042,2]
[338723773,1726899039343,-500.0,0.00014042,2]
[338723774,1726899039356,-367.7667251,0.00014042,2]
[338723775,1726899039366,-500.0,0.00014042,2]
[338723776,1726899039379,-907.39,0.00014042,2]
[338723777,1726899039389,-223.90052132,0.00014042,2]
[338723778,1726899039401,-500.0,0.00014042,2]
[338723779,1726899039415,-500.0,0.00014042,2]
[338723780,1726899039427,-500.0,0.00014042,2]
[338723781,1726899039438,-500.0,0.00014042,2]
[338723782,1726899039449,-500.0,0.00014042,2]
[338723783,1726899039461,-500.0,0.00014042,2]
[338723784,1726899039471,-631.4093569,0.00014042,2]
[338723785,1726899039484,-500.0,0.00014042,2]
[338723786,1726899039494,-502.16199467,0.00014042,2]
[338723787,1726899039505,-500.0,0.00014042,2]
[338723788,1726899039517,-500.0,0.00014042,2]
[338723789,1726899039527,-500.0,0.00014042,2]
[338723790,1726899039538,-500.0,0.00014042,2]
[338723791,1726899039548,-500.0,0.00014042,2]
[338723792,1726899039559,-500.0,0.00014042,2]
[338723793,1726899039570,-500.0,0.00014042,2]
[338723795,1726899039582,-501.23460992,0.00014042,2]
[338723797,1726899039594,-500.0,0.00014042,2]
[338723799,1726899039605,-500.0,0.00014042,2]
[338723801,1726899039616,-500.0,0.00014042,2]
[338723803,1726899039627,-500.0,0.00014042,2]
[338723805,1726899039637,-501.72649322,0.00014042,2]
[338723808,1726899039651,-500.0,0.00014042,2]
[338723810,1726899039662,-500.0,0.00014042,2]
[338723812,1726899039673,-500.0,0.00014042,2]
[338723814,1726899039684,-500.0,0.00014042,2]
[338723816,1726899039695,-500.0,0.00014042,2]
[338723818,1726899039705,-500.0,0.00014042,2]
[338723820,1726899039716,-500.0,0.00014042,2]
[338723823,1726899039727,-500.0,0.00014042,2]
[338723825,1726899039739,-510.33533823,0.00014042,2]
[338723827,1726899039752,-579.1,0.00014042,2]
[338723829,1726899039763,-500.0,0.00014042,2]
[338723831,1726899039774,-500.0,0.00014042,2]
[338723834,1726899039784,-333.60590168,0.00014042,2]
[338723836,1726899039795,-500.0,0.00014042,2]
[338723838,1726899039806,-459.2973992,0.00014042,2]
[338723840,1726899039818,-197.73339282,0.00014042,2]
[338723842,1726899039829,-500.0,0.00014042,2]
[338723844,1726899039841,-502.01356301,0.00014042,2]
[338723846,1726899039862,-500.0,0.00014042,2]
[338723848,1726899039872,-500.0,0.00014042,2]
[338723851,1726899039883,-1000.0,0.00014042,2]
[338723853,1726899039893,-500.0,0.00014042,2]
[338723855,1726899039904,-500.0,0.00014042,2]
[338723857,1726899039915,-500.0,0.00014042,2]
[338723859,1726899039925,-500.0,0.00014042,2]
[338723861,1726899039937,-500.0,0.00014042,2]
[338723864,1726899039948,-500.0,0.00014042,2]
[338723866,1726899039959,-500.0,0.00014042,2]
[338723868,1726899039969,-500.0,0.00014042,2]
[338723870,1726899039979,-500.0,0.00014042,2]
[338723872,1726899039992,-500.0,0.00014042,2]
[338723874,1726899040003,-500.0,0.00014042,2]
[338723877,1726899040014,-500.0,0.00014042,2]
[338723880,1726899040025,-500.0,0.00014042,2]
[338723882,1726899040036,-500.0,0.00014042,2]
[338723884,1726899040047,-500.0,0.00014042,2]
[338723886,1726899040058,-504.20476062,0.00014042,2]
[338723888,1726899040069,-500.0,0.00014042,2]
[338723891,1726899040079,-500.0,0.00014042,2]
[338723893,1726899040090,-500.0,0.00014042,2]
[338723895,1726899040106,-500.0,0.00014042,2]
[338723897,1726899040119,-504.64,0.00014042,2]
[338723900,1726899040131,-500.0,0.00014042,2]
[338723902,1726899040143,-500.0,0.00014042,2]
[338723904,1726899040155,-500.0,0.00014042,2]
[338723906,1726899040166,-500.0,0.00014042,2]
[338723908,1726899040177,-500.0,0.00014042,2]
[338723910,1726899040189,-500.0,0.00014042,2]
[338723912,1726899040200,-545.4931501,0.00014042,2]
[338723915,1726899040211,-600.00572667,0.00014042,2]
[338723917,1726899040223,-500.0,0.00014042,2]
[338723919,1726899040235,-500.0,0.00014042,2]
[338723921,1726899040246,-500.0,0.00014042,2]
[338723924,1726899040258,-500.0,0.00014042,2]
[338723926,1726899040268,-500.0,0.00014042,2]
[338723928,1726899040278,-500.0,0.00014042,2]
[338723930,1726899040287,-500.47760326,0.00014042,2]
[338723932,1726899040297,-500.0,0.00014042,2]
[338723934,1726899040306,-500.0,0.00014042,2]
[338723959,1726899040533,-500.0,0.00014042,2]
[338723962,1726899040554,-500.0,0.00014042,2]
[338723965,1726899040565,-500.0,0.00014042,2]
[338723967,1726899040575,-500.0,0.00014042,2]
[338723969,1726899040585,-2500.0,0.00014042,2]
[338723971,1726899040594,-500.0,0.00014042,2]
[338723973,1726899040603,-500.71222971,0.00014042,2]
[338723975,1726899040615,-500.0,0.00014042,2]
[338723977,1726899040624,-500.0,0.00014042,2]
[338723979,1726899040634,-500.0,0.00014042,2]
[338723981,1726899040645,-500.0,0.00014042,2]
[338723984,1726899040655,-500.0,0.00014042,2]
[338723987,1726899040665,-500.0,0.00014042,2]
[338723990,1726899040674,-500.0,0.00014042,2]
[338723992,1726899040683,-500.0,0.00014042,2]
[338723994,1726899040693,-500.0,0.00014042,2]
[338723996,1726899040703,-500.0,0.00014042,2]
[338723998,1726899040712,-500.0,0.00014042,2]
[338724000,1726899040722,-500.0,0.00014042,2]
[338724002,1726899040731,-500.0,0.00014042,2]
[338724004,1726899040742,-500.0,0.00014042,2]
[338724006,1726899040752,-500.0,0.00014042,2]
[338724008,1726899040761,-500.0,0.00014042,2]
[338724010,1726899040771,-500.0,0.00014042,2]
[338724012,1726899040780,-281.28017977,0.00014042,2]
[338724014,1726899040790,-500.0,0.00014042,2]
[338724016,1726899040800,-500.0,0.00014042,2]
[338724018,1726899040809,-805.8,0.00014042,2]
[338724019,1726899040819,-500.0,0.00014042,2]
[338724021,1726899040828,-508.43863048,0.00014042,2]
[338724023,1726899040837,-500.0,0.00014042,2]
[338724025,1726899040847,-500.0,0.00014042,2]
[338724028,1726899040857,-500.89001931,0.00014042,2]
[338724030,1726899040866,-500.0,0.00014042,2]
[338724032,1726899040876,-500.0,0.00014042,2]
[338724034,1726899040885,-506.3492774,0.00014042,2]
[338724035,1726899040894,-500.0,0.00014042,2]
[338724037,1726899040904,-500.0,0.00014042,2]
[338724039,1726899040913,-500.0,0.00014042,2]
[338724041,1726899040923,-507.35743784,0.00014042,2]
[338724042,1726899040933,-500.8318565,0.00014042,2]
[338724043,1726899040943,-500.0,0.00014042,2]
[338724044,1726899040952,-501.06683978,0.00014042,2]
[338724045,1726899040962,-500.0,0.00014042,2]
[338724046,1726899040971,-500.0,0.00014042,2]
[338724047,1726899040981,-500.0,0.00014042,2]
[338724048,1726899040990,-446.70538196,0.00014042,2]
[338724049,1726899040999,-500.0,0.00014042,2]
[338724050,1726899041009,-500.0,0.00014042,2]
[338724051,1726899041018,-500.0,0.00014042,2]
[338724052,1726899041027,-500.0,0.00014042,2]
[338724053,1726899041037,-500.0,0.00014042,2]
[338724054,1726899041046,-500.0,0.00014042,2]
[338724055,1726899041056,-500.0,0.00014042,2]
[338724056,1726899041066,-500.0,0.00014042,2]
[338724057,1726899041077,-500.0,0.00014042,2]
[338724058,1726899041087,-503.86863484,0.00014042,2]
[338724059,1726899041097,-500.0,0.00014042,2]
[338724060,1726899041109,-500.0,0.00014042,2]
[338724061,1726899041119,-500.0,0.00014042,2]
[338724062,1726899041128,-500.0,0.00014042,2]
[338724063,1726899041137,-500.0,0.00014042,2]
[338724064,1726899041146,-500.0,0.00014042,2]
[338724065,1726899041155,-503.12962602,0.00014042,2]
[338724066,1726899041164,-501.17714478,0.00014042,2]
[338724067,1726899041174,-500.0,0.00014042,2]
[338724068,1726899041183,-579.51,0.00014042,2]
[338724069,1726899041192,-500.0,0.00014042,2]
[338724070,1726899041202,-500.0,0.00014042,2]
[338724071,1726899041211,-500.0,0.00014042,2]
[338724072,1726899041221,-501.47347308,0.00014042,2]
[338724073,1726899041230,-500.0,0.00014042,2]
[338724074,1726899041240,-500.0,0.00014042,2]
[338724075,1726899041249,-500.0,0.00014042,2]
[338724076,1726899041259,-538.93267239,0.00014042,2]
[338724077,1726899041269,-500.0,0.00014042,2]
[338724078,1726899041278,-500.0,0.00014042,2]
[338724079,1726899041288,-500.0,0.00014042,2]
[338724081,1726899041297,-500.0,0.00014042,2]
[338724083,1726899041307,-510.45171435,0.00014042,2]
[338724085,1726899041316,-500.0,0.00014042,2]
[338724087,1726899041326,-500.0,0.00014042,2]
[338724089,1726899041335,-500.0,0.00014042,2]
[338724091,1726899041344,-500.0,0.00014042,2]
[338724093,1726899041354,-500.0,0.00014042,2]
[338724095,1726899041364,-502.31108353,0.00014042,2]
[338724097,1726899041373,-501.50321184,0.00014042,2]
[338724099,1726899041383,-500.0,0.00014042,2]
[338724101,1726899041392,-230.03,0.00014042,2]
[338724103,1726899041401,-584.16866131,0.00014042,2]
[338724105,1726899041410,-159.43,0.00014042,2]
[338724106,1726899041420,-501.4463052,0.00014042,2]
[338724108,1726899041429,-500.0,0.00014042,2]
[338724110,1726899041438,-500.0,0.00014042,2]
[338724112,1726899041447,-500.0,0.00014042,2]
[338724114,1726899041456,-500.0,0.00014042,2]
[338724116,1726899041465,-500.0,0.00014042,2]
[338724118,1726899041474,-500.0,0.00014042,2]
[338724120,1726899041483,-500.0,0.00014042,2]
[338724122,1726899041492,-500.0,0.00014042,2]
[338724124,1726899041502,-500.0,0.00014042,2]
[338724126,1726899041511,-431.20530052,0.00014042,2]
[338724128,1726899041520,-500.0,0.00014042,2]
[338724130,1726899041530,-500.0,0.00014042,2]
[338724132,1726899041539,-500.0,0.00014042,2]
[338724134,1726899041548,-566.49898979,0.00014042,2]
[338724136,1726899041557,-500.0,0.00014042,2]
[338724138,1726899041566,-531.75,0.00014042,2]
[338724140,1726899041575,-500.0,0.00014042,2]
[338724142,1726899041585,-500.0,0.00014042,2]
[338724144,1726899041594,-500.0,0.00014042,2]
[338724146,1726899041604,-500.0,0.00014042,2]
[338724148,1726899041613,-500.0,0.00014042,2]
[338724149,1726899041623,-883.19,0.00014042,2]
[338724152,1726899041632,-500.0,0.00014042,2]
[338724154,1726899041641,-500.0,0.00014042,2]
[338724155,1726899041650,-620.43,0.00014042,2]
[338724157,1726899041660,-626.19907572,0.00014042,2]
[338724159,1726899041669,-500.0,0.00014042,2]
[338724161,1726899041678,-500.0,0.00014043,2]
[338724163,1726899041687,-500.0,0.00014043,2]
[338724165,1726899041696,-500.0,0.00014043,2]
[338724168,1726899041706,-500.0,0.00014044,2]
[338724170,1726899041715,-527.77328766,0.00014044,2]
[338724172,1726899041725,-500.0,0.00014044,2]
[338724173,1726899041734,-500.0,0.00014044,2]
[338724175,1726899041743,-200.0,0.00014044,2]
[338724177,1726899041752,-565.13,0.00014044,2]
[338724179,1726899041762,-500.0,0.00014044,2]
[338724181,1726899041771,-500.0,0.00014044,2]
[338724183,1726899041781,-500.0,0.00014044,2]
[338724185,1726899041790,-500.0,0.00014044,2]
[338724187,1726899041799,-500.0,0.00014044,2]
[338724189,1726899041808,-509.88031725,0.00014044,2]
[338724191,1726899041818,-500.0,0.00014044,2]
[338724193,1726899041827,-500.0,0.00014044,2]
[338724195,1726899041837,-500.0,0.00014045,2]
[338724197,1726899041846,-503.03716034,0.00014045,2]
[338724199,1726899041855,-500.0,0.00014045,2]
[338724202,1726899041865,-500.0,0.00014045,2]
[338724203,1726899041875,-500.0,0.00014045,2]
[338724206,1726899041884,-326.07776532,0.00014045,2]
[338724208,1726899041893,-501.48109205,0.00014045,2]
[338724209,1726899041902,-502.3493915,0.00014045,2]
[338724211,1726899041911,-500.0,0.00014045,2]
[338724213,1726899041922,-500.0,0.00014045,2]
[338724215,1726899041931,-500.0,0.00014045,2]
[338724217,1726899041941,-771.82,0.00014045,2]
[338724219,1726899041950,-500.0,0.00014045,2]
[338724221,1726899041959,-500.0,0.00014045,2]
[338724223,1726899041969,-564.34,0.00014045,2]
[338724225,1726899041978,-550.59,0.00014045,2]
[338724227,1726899041987,-555.92,0.00014045,2]
[338724229,1726899041997,-500.0,0.00014045,2]
[338724231,1726899042006,-500.0,0.00014045,2]
[338724233,1726899042016,-500.0,0.00014045,2]
[338724235,1726899042025,-501.50201957,0.00014045,2]
[338724237,1726899042037,-500.0,0.00014045,2]
[338724239,1726899042048,-575.12,0.00014045,2]
[338724241,1726899042057,-500.0,0.00014045,2]
[338724243,1726899042067,-500.0,0.00014045,2]
[338724245,1726899042076,-500.0,0.00014045,2]
[338724246,1726899042085,-500.0,0.00014045,2]
[338724249,1726899042094,-500.0,0.00014045,2]
[338724251,1726899042106,-500.0,0.00014045,2]
[338724253,1726899042119,-500.0,0.00014045,2]
[338724255,1726899042129,-534.44,0.00014045,2]
[338724256,1726899042138,-500.0,0.00014045,2]
[338724259,1726899042147,-500.0,0.00014045,2]
[338724261,1726899042158,-501.39275379,0.00014045,2]
[338724263,1726899042168,-500.0,0.00014045,2]
[338724265,1726899042177,-500.0,0.00014045,2]
[338724267,1726899042187,-500.0,0.00014045,2]
[338724269,1726899042197,-500.0,0.00014045,2]
[338724270,1726899042206,-221.89640917,0.00014045,2]
[338724272,1726899042216,-500.0,0.00014045,2]
[338724275,1726899042227,-500.0,0.00014045,2]
[338724277,1726899042236,-500.0,0.00014045,2]
[338724279,1726899042246,-500.0,0.00014045,2]
[338724281,1726899042256,-515.59911473,0.00014045,2]
[338724283,1726899042266,-500.0,0.00014045,2]
[338724285,1726899042277,-500.0,0.00014045,2]
[338724287,1726899042288,-500.0,0.00014045,2]
[338724289,1726899042298,-500.0,0.00014045,2]
[338724291,1726899042307,-501.047481,0.00014045,2]
[338724293,1726899042317,-500.0,0.00014045,2]
[338724295,1726899042327,-192.8522331,0.00014045,2]
[338724297,1726899042337,-500.0,0.00014045,2]
[338724299,1726899042348,-500.0,0.00014045,2]
[338724301,1726899042358,-500.0,0.00014045,2]
[338724303,1726899042368,-500.0,0.00014045,2]
[338724305,1726899042377,-500.0,0.00014045,2]
[338724307,1726899042386,-500.0,0.00014046,2]
[338724309,1726899042395,-176.17898912,0.00014046,2]
[338724311,1726899042404,-500.0,0.00014055,2]
[338724313,1726899042413,-500.0,0.00014056,2]
[338724315,1726899042422,-500.0,0.00014056,2]
[338724317,1726899042431,-501.22724374,0.00014056,2]
[338724319,1726899042441,-500.0,0.00014056,2]
[338724321,1726899042450,-503.30970546,0.00014056,2]
[338724323,1726899042459,-500.0,0.00014056,2]
[338724325,1726899042469,-282.86466542,0.00014056,2]
[338724327,1726899042478,-500.0,0.00014056,2]
[338724329,1726899042488,-500.0,0.00014056,2]
[338724331,1726899042497,-154.3611899,0.00014056,2]
[338724333,1726899042507,-500.0,0.00014056,2]
[338724335,1726899042516,-500.0,0.00014056,2]
[338724337,1726899042525,-501.95743209,0.00014056,2]
[338724339,1726899042534,-500.0,0.00014056,2]
[338724340,1726899042543,-2750.53008062,0.00014209,2]
[338724342,1726899042554,-837.99239134,0.00014215,2]
[338724344,1726899042563,-158.47209938,0.00014218,2]